fUSD/lending_fUSD_20240121
["ID","MTS","AMOUNT","RATE_DAILY","PERIOD"]
[312400506,1705858336423,-500.0,0.00043287,31]
[312400507,1705858336433,-500.0,0.00043287,31]
[312400508,1705858336441,-500.0,0.00043287,31]
[312400509,1705858336451,-500.0,0.00043287,31]
[312400510,1705858336460,-500.0,0.00043287,31]
[312400511,1705858336469,-689.41,0.00043287,31]
[312400512,1705858336480,-733.26,0.00043287,31]
[312400513,1705858336489,-516.09,0.00043287,31]
[312400514,1705858336499,-521.72,0.00043287,31]
[312400515,1705858336508,-648.59,0.00043287,31]
[312400516,1705858336517,-493.59917965,0.00043287,31]
[312400517,1705858336526,-500.0,0.00043287,31]
[312400518,1705858336535,-1334.82,0.00043287,31]
[312400519,1705858336544,-300.0,0.00043287,31]
[312400520,1705858336553,-502.4531386,0.00043287,31]
[312400521,1705858336563,-500.0,0.00043287,31]
[312400522,1705858336572,-500.0,0.00043287,2]
[312400523,1705858336581,-543.26,0.00043287,31]
[312400524,1705858336590,-558.46,0.00043287,31]
[312400525,1705858336599,-1416.38,0.00043287,2]
[312400526,1705858336608,-500.0,0.00043287,31]
[312400527,1705858336617,-772.93,0.00043287,31]
[312400528,1705858336626,-537.8,0.00043287,31]
[312400529,1705858336635,-500.0,0.00043287,31]
[312400530,1705858336644,-646.27,0.00043287,31]
[312400531,1705858336653,-500.0,0.00043287,31]
[312400532,1705858336662,-1451.51,0.00043287,31]
[312400533,1705858336672,-500.0,0.00043287,31]
[312400534,1705858336681,-500.0,0.00043287,31]
[312400535,1705858336690,-618.07,0.00043287,31]
[312400536,1705858336699,-500.0,0.00043287,31]
[312400537,1705858336708,-684.61,0.00043287,31]
[312400538,1705858336717,-692.68,0.00043287,31]
[312400539,1705858336728,-500.0,0.00043287,31]
[312400540,1705858336737,-833.11,0.00043287,31]
[312400541,1705858336746,-500.0,0.00043287,31]
[312400542,1705858336755,-1000.0,0.00043287,50]
[312400543,1705858336764,-500.0,0.00043287,31]
[312400544,1705858336773,-765.98,0.00043287,31]
[312400545,1705858336783,-635.0,0.00043287,31]
[312400546,1705858336792,-513.05588799,0.00043287,31]
[312400547,1705858336801,-569.6,0.00043287,31]
[312400548,1705858336810,-997.4,0.00043287,31]
[312400549,1705858336819,-500.0,0.00043287,31]
[312400550,1705858336828,-500.0,0.00043287,31]
[312400551,1705858336837,-308.54669715,0.00043287,31]
[312400552,1705858336846,-500.0,0.00043287,31]
[312400553,1705858336855,-796.16,0.00043287,31]
[312400554,1705858336864,-500.0,0.00043287,31]
[312400555,1705858336873,-500.0,0.00043287,31]
[312400556,1705858336882,-562.29,0.00043287,31]
[312400557,1705858336891,-530.76,0.00043287,31]
[312400558,1705858336901,-500.0,0.00043287,31]
[312400559,1705858336910,-515.34117362,0.00043287,31]
[312400560,1705858336919,-869.35,0.00043287,31]
[312400561,1705858336928,-500.0,0.00043287,31]
[312400562,1705858336937,-500.0,0.00043287,31]
[312400563,1705858336947,-500.0,0.00043287,31]
[312400564,1705858336956,-500.0,0.00043287,31]
[312400565,1705858336966,-532.62,0.00043287,31]
[312400566,1705858336975,-500.0,0.00043287,31]
[312400567,1705858336985,-796.99,0.00043287,31]
[312400568,1705858336994,-1317.0,0.00043287,31]
[312400569,1705858337003,-500.0,0.00043287,31]
[312400570,1705858337013,-500.0,0.00043287,31]
[312400571,1705858337022,-559.68,0.00043287,31]
[312400572,1705858337032,-662.26,0.00043287,31]
[312400573,1705858337041,-500.0,0.00043287,31]
[312400574,1705858337051,-500.0,0.00043287,31]
[312400575,1705858337060,-500.0,0.00043287,31]
[312400576,1705858337070,-525.16818306,0.00043287,31]
[312400577,1705858337083,-500.0,0.00043287,31]
[312400578,1705858337092,-737.04,0.00043287,31]
[312400579,1705858337101,-500.0,0.00043287,31]
[312400580,1705858337110,-843.71,0.00043287,31]
[312400581,1705858337120,-670.12,0.00043287,31]
[312400582,1705858337129,-500.0,0.00043287,31]
[312400583,1705858337139,-500.0,0.00043287,31]
[312400584,1705858337149,-897.27,0.00043287,31]
[312400585,1705858337160,-500.0,0.00043287,31]
[312400586,1705858337170,-500.0,0.00043287,31]
[312400587,1705858337180,-500.0,0.00043287,31]
[312400588,1705858337190,-1007.44,0.00043287,31]
[312400589,1705858337200,-500.0,0.00043287,31]
[312400590,1705858337209,-500.0,0.00043287,31]
[312400591,1705858337218,-500.0,0.00043287,31]
[312400592,1705858337228,-513.25478556,0.00043287,31]
[312400593,1705858337237,-500.0,0.00043287,31]
[312400594,1705858337247,-506.17191132,0.00043287,31]
[312400595,1705858337256,-748.65,0.00043287,31]
[312400596,1705858337266,-500.0,0.00043287,31]
[312400597,1705858337274,-500.0,0.00043287,31]
[312400598,1705858337284,-500.0,0.00043287,60]
[312400599,1705858337293,-500.0,0.00043287,31]
[312400600,1705858337301,-508.13592552,0.00043287,31]
[312400601,1705858337310,-1126.77,0.00043287,31]
[312400602,1705858337320,-796.98,0.00043287,31]
[312400603,1705858337329,-500.0,0.00043287,31]
[312400604,1705858337338,-500.0,0.00043287,31]
[312400605,1705858337347,-788.72,0.00043287,31]
[312400606,1705858337356,-411.34030506,0.00043287,31]
[312400607,1705858337366,-530.34,0.00043287,31]
[312400608,1705858337375,-500.0,0.00043287,31]
[312400609,1705858337384,-500.0,0.00043287,31]
[312400610,1705858337394,-500.0,0.00043287,5]
[312400611,1705858337402,-454.79826694,0.00043287,7]
[312400612,1705858337412,-1147.47,0.00043287,31]
[312400613,1705858337421,-500.0,0.00043287,31]
[312400614,1705858337430,-500.0,0.00043287,31]
[312400615,1705858337439,-883.78,0.00043287,31]
[312400616,1705858337448,-500.0,0.00043287,31]
[312400617,1705858337457,-500.0,0.00043287,31]
[312400618,1705858337466,-590.82,0.00043287,31]
[312400619,1705858337475,-500.0,0.00043287,31]
[312400620,1705858337485,-715.34,0.00043287,31]
[312400621,1705858337493,-1084.43,0.00043287,31]
[312400622,1705858337502,-500.0,0.00043287,31]
[312400623,1705858337511,-500.0,0.00043287,31]
[312400624,1705858337521,-500.0,0.00043287,31]
[312400625,1705858337530,-500.0,0.00043287,31]
[312400626,1705858337540,-504.9,0.00043287,31]
[312400627,1705858337549,-500.0,0.00043287,31]
[312400628,1705858337558,-784.14,0.00043287,2]
[312400629,1705858337567,-720.62,0.00043287,31]
[312400630,1705858337577,-525.90495769,0.00043287,31]
[312400631,1705858337586,-735.28,0.00043287,31]
[312400632,1705858337595,-527.56095522,0.00043287,31]
[312400633,1705858337605,-500.0,0.00043287,31]
[312400634,1705858337614,-250.99595085,0.00043287,31]
[312400635,1705858337624,-857.01,0.00043287,31]
[312400636,1705858337633,-588.81,0.00043287,31]
[312400637,1705858337642,-609.36,0.00043287,31]
[312400638,1705858337652,-500.0,0.00043287,31]
[312400639,1705858337661,-500.0,0.00043287,31]
[312400640,1705858337671,-500.0,0.00043287,31]
[312400641,1705858337680,-500.0,0.00043287,31]
[312400642,1705858337690,-698.28,0.00043287,20]
[312400643,1705858337699,-640.31,0.00043287,31]
[312400644,1705858337708,-500.0,0.00043287,31]
[312400645,1705858337717,-589.47,0.00043287,31]
[312400646,1705858337726,-892.27,0.00043287,31]
[312400647,1705858337735,-689.61,0.00043287,31]
[312400648,1705858337744,-500.0,0.00043287,31]
[312400649,1705858337754,-1142.77,0.00043287,31]
[312400650,1705858337763,-673.82,0.00043287,31]
[312400651,1705858337772,-1059.2,0.00043287,31]
[312400652,1705858337781,-174.30539469,0.00043287,31]
[312400653,1705858337790,-523.1,0.00043287,31]
[312400654,1705858337799,-685.54,0.00043287,31]
[312400655,1705858337808,-500.0,0.00043287,31]
[312400656,1705858337817,-626.04,0.00043287,31]
[312400657,1705858337827,-500.0,0.00043287,31]
[312400658,1705858337836,-500.0,0.00043287,31]
[312400659,1705858337845,-501.23,0.00043287,31]
[312400660,1705858337855,-1287.05,0.00043287,31]
[312400661,1705858337865,-937.48,0.00043287,31]
[312400662,1705858337874,-627.4,0.00043287,31]
[312400663,1705858337885,-613.32,0.00043287,31]
[312400664,1705858337894,-500.0,0.00043287,31]
[312400665,1705858337904,-500.0,0.00043287,31]
[312400666,1705858337913,-1020.35,0.00043287,31]
[312400667,1705858337923,-1030.81,0.00043287,31]
[312400668,1705858337932,-500.0,0.00043287,31]
[312400669,1705858337941,-944.11,0.00043287,31]
[312400670,1705858337952,-523.51221021,0.00043287,31]
[312400671,1705858337962,-500.0,0.00043287,31]
[312400672,1705858337971,-500.0,0.00043287,31]
[312400673,1705858337981,-616.31,0.00043287,31]
[312400674,1705858337990,-500.0,0.00043287,31]
[312400675,1705858338000,-801.3,0.00043287,31]
[312400676,1705858338010,-515.87809531,0.00043287,31]
[312400677,1705858338019,-500.0,0.00043287,31]
[312400678,1705858338028,-785.3,0.00043287,31]
[312400679,1705858338038,-500.0,0.00043287,31]
[312400680,1705858338047,-1514.87,0.00043287,31]
[312400681,1705858338057,-500.0,0.00043287,31]
[312400682,1705858338066,-687.19,0.00043287,31]
[312400683,1705858338078,-510.67,0.00043287,31]
[312400684,1705858338088,-799.14,0.00043287,31]
[312400685,1705858338098,-598.15,0.00043287,31]
[312400686,1705858338107,-500.0,0.00043287,31]
[312400687,1705858338117,-500.0,0.00043287,31]
[312400688,1705858338126,-500.0,0.00043287,31]
[312400689,1705858338136,-500.0,0.00043287,31]
[312400690,1705858338146,-500.0,0.00043287,31]
[312400691,1705858338157,-500.0,0.00043287,31]
[312400692,1705858338167,-500.0,0.00043287,31]
[312400693,1705858338177,-500.0,0.00043287,31]
[312400694,1705858338186,-943.23,0.00043287,31]
[312400695,1705858338196,-748.3,0.00043287,31]
[312400696,1705858338206,-653.96,0.00043287,31]
[312400697,1705858338215,-717.66,0.00043287,31]
[312400698,1705858338224,-500.93,0.00043287,31]
[312400699,1705858338234,-615.42,0.00043287,31]
[312400700,1705858338244,-1085.38,0.00043287,31]
[312400701,1705858338253,-284.11215313,0.00043287,31]
[312400702,1705858338262,-500.0,0.00043287,31]
[312400703,1705858338271,-500.0,0.00043287,31]
[312400704,1705858338281,-500.0,0.00043287,31]
[312400705,1705858338290,-544.45,0.00043287,2]
[312400706,1705858338299,-500.0,0.00043287,31]
[312400707,1705858338308,-434.47226763,0.00043287,31]
[312400708,1705858338318,-370.84148192,0.00043287,31]
[312400709,1705858338327,-791.93,0.00043287,7]
[312400710,1705858338336,-506.42439312,0.00043287,31]
[312400711,1705858338345,-1089.26,0.00043287,31]
[312400712,1705858338354,-791.68,0.00043287,31]
[312400713,1705858338363,-597.73,0.00043287,31]
[312400714,1705858338372,-500.0,0.00043287,31]
[312400715,1705858338381,-500.0,0.00043287,31]
[312400716,1705858338390,-500.0,0.00043287,31]
[312400717,1705858338399,-500.0,0.00043287,31]
[312400718,1705858338408,-500.0,0.00043287,31]
[312400719,1705858338417,-500.0,0.00043287,31]
[312400720,1705858338426,-733.67,0.00043287,31]
[312400721,1705858338435,-500.0,0.00043287,31]
[312400722,1705858338444,-500.0,0.00043287,31]
[312400723,1705858338453,-634.48,0.00043287,31]
[312400724,1705858338463,-500.0,0.00043287,31]
[312400725,1705858338472,-500.0,0.00043287,31]
[312400726,1705858338481,-978.66,0.00043287,31]
[312400727,1705858338490,-2489.12,0.00043287,31]
[312400728,1705858338499,-500.0,0.00043287,31]
[312400729,1705858338509,-500.0,0.00043287,31]
[312400730,1705858338518,-802.28,0.00043287,31]
[312400731,1705858338527,-500.0,0.00043287,31]
[312400732,1705858338536,-500.0,0.00043287,31]
[312400733,1705858338546,-500.0,0.00043287,31]
[312400734,1705858338555,-971.0,0.00043287,31]
[312400735,1705858338564,-500.0,0.00043287,31]
[312400736,1705858338573,-500.0,0.00043287,31]
[312400737,1705858338583,-1114.65,0.00043287,31]
[312400738,1705858338592,-632.04,0.00043287,31]
[312400739,1705858338601,-500.0,0.00043287,31]
[312400740,1705858338610,-753.06,0.00043287,31]
[312400741,1705858338619,-500.0,0.00043287,31]
[312400742,1705858338628,-500.0,0.00043287,31]
[312400743,1705858338638,-153.0,0.00043287,31]
[312400744,1705858338647,-500.0,0.00043287,31]
[312400745,1705858338656,-500.0,0.00043287,31]
[312400746,1705858338666,-500.0,0.00043287,31]
[312400747,1705858338675,-500.0,0.00043287,31]
[312400748,1705858338684,-1398.52,0.00043287,31]
[312400749,1705858338693,-629.95,0.00043287,31]
[312400750,1705858338703,-956.47,0.00043287,31]
[312400751,1705858338712,-500.0,0.00043287,31]
[312400752,1705858338721,-500.0,0.00043287,31]
[312400753,1705858338731,-511.69706323,0.00043287,31]
[312400754,1705858338740,-649.26,0.00043287,31]
[312400755,1705858338750,-892.97,0.00043287,31]
[312400756,1705858338760,-500.0,0.00043287,31]
[312400757,1705858338769,-500.0,0.00043287,31]
[312400758,1705858338778,-500.0,0.00043287,31]
[312400759,1705858338787,-652.07,0.00043287,31]
[312400760,1705858338797,-500.0,0.00043287,31]
[312400761,1705858338806,-500.0,0.00043287,31]
[312400762,1705858338815,-723.49,0.00043287,31]
[312400763,1705858338824,-1071.67,0.00043287,31]
[312400764,1705858338834,-1235.99,0.00043287,31]
[312400765,1705858338843,-500.0,0.00043287,31]
[312400766,1705858338851,-563.48,0.00043287,31]
[312400767,1705858338860,-596.07,0.00043287,31]
[312400768,1705858338870,-500.0,0.00043287,31]
[312400769,1705858338879,-500.0,0.00043287,31]
[312400770,1705858338888,-1710.77,0.00043287,31]
[312400771,1705858338897,-500.0,0.00043287,31]
[312400772,1705858338906,-1311.77,0.00043287,31]
[312400773,1705858338916,-727.55,0.00043287,31]
[312400774,1705858338926,-1518.81,0.00043287,31]
[312400775,1705858338935,-500.0,0.00043287,31]
[312400776,1705858338945,-678.7,0.00043287,31]
[312400777,1705858338955,-801.37,0.00043287,20]
[312400778,1705858338964,-500.0,0.00043287,31]
[312400779,1705858338973,-500.0,0.00043287,31]
[312400780,1705858338983,-500.0,0.00043287,31]
[312400781,1705858338992,-500.0,0.00043287,31]
[312400782,1705858339002,-1062.99,0.00043287,31]
[312400783,1705858339011,-500.0,0.00043287,31]
[312400784,1705858339021,-500.0,0.00043287,31]
[312400785,1705858339030,-500.0,0.00043287,31]
[312400786,1705858339039,-458.01155176,0.00043287,31]
[312400787,1705858339048,-730.53,0.00043287,31]
[312400788,1705858339058,-500.0,0.00043287,31]
[312400789,1705858339068,-500.0,0.00043287,31]
[312400790,1705858339082,-639.15,0.00043287,31]
[312400791,1705858339091,-500.0,0.00043287,31]
[312400792,1705858339102,-500.0,0.00043287,31]
[312400793,1705858339113,-500.0,0.00043287,31]
[312400794,1705858339122,-683.37,0.00043287,31]
[312400795,1705858339132,-713.6,0.00043287,31]
[312400796,1705858339142,-500.0,0.00043287,31]
[312400797,1705858339152,-522.29,0.00043287,31]
[312400798,1705858339161,-500.0,0.00043287,31]
[312400799,1705858339171,-500.0,0.00043287,31]
[312400800,1705858339180,-1341.01,0.00043287,31]
[312400801,1705858339190,-500.0,0.00043287,31]
[312400802,1705858339200,-815.74,0.00043287,31]
[312400803,1705858339210,-908.38,0.00043287,31]
[312400804,1705858339220,-500.0,0.00043287,31]
[312400805,1705858339231,-844.72,0.00043287,31]
[312400806,1705858339240,-500.0,0.00043287,31]
[312400807,1705858339249,-500.0,0.00043287,31]
[312400808,1705858339260,-500.0,0.00043287,31]
[312400809,1705858339270,-625.99,0.00043287,31]
[312400810,1705858339279,-798.26,0.00043287,31]
[312400811,1705858339289,-500.0,0.00043287,31]
[312400812,1705858339298,-944.0,0.00043287,31]
[312400813,1705858339307,-1236.84,0.00043287,31]
[312400814,1705858339317,-500.0,0.00043287,31]
[312400815,1705858339326,-772.74,0.00043287,31]
[312400816,1705858339335,-500.0,0.00043287,31]
[312400817,1705858339344,-674.68,0.00043287,31]
[312400818,1705858339353,-500.0,0.00043287,31]
[312400819,1705858339362,-677.86,0.00043287,31]
[312400820,1705858339371,-1386.82,0.00043287,31]
[312400821,1705858339380,-575.35,0.00043287,2]
[312400822,1705858339389,-546.59,0.00043287,31]
[312400823,1705858339399,-500.0,0.00043287,31]
[312400824,1705858339496,-1093.4,0.00043287,31]
[312400825,1705858339506,-876.12,0.00043287,31]
[312400826,1705858339515,-1506.33,0.00043287,31]
[312400827,1705858339524,-563.22,0.00043287,31]
[312400828,1705858339534,-775.99,0.00043287,31]
[312400829,1705858339544,-1359.97,0.00043287,31]
[312400830,1705858339553,-500.0,0.00043287,31]
[312400831,1705858339563,-1846.34,0.00043287,31]
[312400832,1705858339572,-706.97,0.00043287,31]
[312400833,1705858339582,-500.0,0.00043287,31]
[312400834,1705858339591,-827.05,0.00043287,31]
[312400835,1705858339600,-500.0,0.00043287,31]
[312400836,1705858339611,-736.6,0.00043287,31]
[312400837,1705858339621,-1026.28,0.00043287,31]
[312400838,1705858339631,-1358.53,0.00043287,31]
[312400839,1705858339641,-1261.93,0.00043287,31]
[312400840,1705858339650,-500.0,0.00043287,31]
[312400841,1705858339660,-500.0,0.00043287,7]
[312400842,1705858339669,-1103.53,0.00043287,31]
[312400843,1705858339679,-500.0,0.00043287,31]
[312400844,1705858339689,-800.0,0.00043287,30]
[312400845,1705858339698,-568.36,0.00043287,31]
[312400846,1705858339707,-557.3,0.00043287,31]
[312400847,1705858339716,-381.5451981,0.00043287,31]
[312400848,1705858339726,-773.33,0.00043287,31]
[312400849,1705858339735,-500.0,0.00043287,31]
[312400850,1705858339745,-1341.32,0.00043287,31]
[312400851,1705858339755,-948.55,0.00043287,31]
[312400852,1705858339764,-532.88,0.00043287,31]
[312400853,1705858339774,-500.0,0.00043287,31]
[312400854,1705858339782,-500.0,0.00043287,31]
[312400855,1705858339792,-500.0,0.00043287,31]
[312400856,1705858339801,-500.0,0.00043287,31]
[312400857,1705858339811,-500.0,0.00043287,31]
[312400858,1705858339821,-180.52,0.00043287,31]
[312400859,1705858339831,-500.0,0.00043287,31]
[312400860,1705858339840,-713.94,0.00043287,31]
[312400861,1705858339850,-500.0,0.00043287,31]
[312400862,1705858339859,-1009.22,0.00043287,31]
[312400863,1705858339868,-500.0,0.00043287,31]
[312400864,1705858339877,-542.43,0.00043287,31]
[312400865,1705858339887,-500.0,0.00043287,31]
[312400866,1705858339896,-500.0,0.00043287,31]
[312400867,1705858339905,-500.0,0.00043287,31]
[312400868,1705858339915,-1020.8,0.00043287,31]
[312400869,1705858339924,-500.0,0.00043287,31]
[312400870,1705858339933,-500.0,0.00043287,31]
[312400871,1705858339943,-674.71,0.00043287,31]
[312400872,1705858339952,-907.75,0.00043287,31]
[312400873,1705858339961,-2628.29,0.00043287,7]
[312400874,1705858339971,-500.0,0.00043287,31]
[312400875,1705858339981,-500.0,0.00043287,31]
[312400876,1705858339990,-500.0,0.00043287,31]
[312400877,1705858340000,-500.0,0.00043287,31]
[312400878,1705858340010,-500.0,0.00043287,31]
[312400879,1705858340019,-500.0,0.00043287,31]
[312400880,1705858340028,-510.33357317,0.00043287,31]
[312400881,1705858340038,-542.34126826,0.00043287,31]
[312400882,1705858340047,-726.92,0.00043287,31]
[312400883,1705858340057,-802.51,0.00043287,31]
[312400884,1705858340068,-500.0,0.00043287,31]
[312400885,1705858340080,-500.0,0.00043287,31]
[312400886,1705858340090,-500.0,0.00043287,31]
[312400887,1705858340099,-3326.6,0.00043287,31]
[312400888,1705858340110,-919.56,0.00043287,31]
[312400889,1705858340119,-500.0,0.00043287,31]
[312400890,1705858340129,-500.0,0.00043287,31]
[312400891,1705858340139,-500.0,0.00043287,31]
[312400892,1705858340149,-604.37,0.00043287,31]
[312400893,1705858340160,-563.35,0.00043287,31]
[312400894,1705858340170,-719.21,0.00043287,31]
[312400895,1705858340179,-500.0,0.00043287,31]
[312400896,1705858340189,-814.86,0.00043287,31]
[312400897,1705858340198,-500.0,0.00043287,31]
[312400898,1705858340208,-475.56207674,0.00043287,31]
[312400899,1705858340217,-920.57,0.00043287,31]
[312400900,1705858340227,-973.6,0.00043287,31]
[312400901,1705858340236,-500.0,0.00043287,31]
[312400902,1705858340246,-642.1,0.00043287,31]
[312400903,1705858340255,-500.0,0.00043287,31]
[312400904,1705858340265,-1551.87,0.00043287,31]
[312400905,1705858340274,-549.52,0.00043287,31]
[312400906,1705858340284,-500.0,0.00043287,7]
[312400907,1705858340293,-500.0,0.00043287,31]
[312400908,1705858340302,-4046.77,0.00043287,31]
[312400909,1705858340312,-500.0,0.00043287,31]
[312400910,1705858340321,-500.0,0.00043287,31]
[312400911,1705858340331,-500.0,0.00043287,31]
[312400912,1705858340340,-500.0,0.00043287,31]
[312400913,1705858340350,-695.82,0.00043287,31]
[312400914,1705858340360,-769.33,0.00043287,31]
[312400915,1705858340369,-505.43159541,0.00043287,31]
[312400916,1705858340379,-700.79,0.00043287,31]
[312400917,1705858340389,-500.0,0.00043287,31]
[312400918,1705858340398,-500.0,0.00043287,31]
[312400919,1705858340407,-500.0,0.00043287,31]
[312400920,1705858340418,-745.29,0.00043287,31]
[312400921,1705858340427,-500.0,0.00043287,31]
[312400922,1705858340436,-500.0,0.00043287,31]
[312400923,1705858340445,-7045.39,0.00043287,31]
[312400924,1705858340454,-1262.27,0.00043287,31]
[312400925,1705858340464,-500.0,0.00043287,31]
[312400926,1705858340473,-690.37,0.00043287,31]
[312400927,1705858340483,-520.83,0.00043287,31]
[312400928,1705858340493,-500.0,0.00043287,31]
[312400929,1705858340502,-757.17,0.00043287,31]
[312400930,1705858340512,-5696.35,0.00043287,31]
[312400931,1705858340522,-500.0,0.00043287,31]
[312400932,1705858340531,-353.81,0.00043287,31]
[312400933,1705858340541,-1837.87,0.00043287,31]
[312400934,1705858340552,-500.0,0.00043287,31]
[312400935,1705858340561,-500.0,0.00043287,31]
[312400936,1705858340570,-908.52,0.00043287,31]
[312400937,1705858340580,-500.0,0.00043287,31]
[312400938,1705858340590,-643.28490979,0.00043287,31]
[312400939,1705858340600,-9649.82,0.00043287,31]
[312400940,1705858340609,-1916.53,0.00043287,31]
[312400941,1705858340619,-1240.43,0.00043287,31]
[312400942,1705858340628,-500.0,0.00043287,31]
[312400943,1705858340638,-695.14,0.00043287,31]
[312400944,1705858340648,-500.0,0.00043287,31]
[312400945,1705858340657,-500.0,0.00043287,31]
[312400946,1705858340667,-1114.6,0.00043287,31]
[312400947,1705858340677,-1341.69,0.00043287,31]
[312400948,1705858340686,-500.0,0.00043287,31]
[312400949,1705858340696,-500.0,0.00043287,31]
[312400950,1705858340705,-921.33,0.00043287,31]
[312400951,1705858340726,-1113.57,0.00043287,31]
[312400952,1705858340747,-5530.48,0.00043287,31]
[312400953,1705858340769,-793.66,0.00043287,31]
[312400954,1705858340792,-506.47020699,0.00043287,31]
[312400955,1705858340816,-500.0,0.00043287,31]
[312400956,1705858340838,-795.91,0.00043287,31]
[312400957,1705858340860,-513.00023033,0.00043287,31]
[312400958,1705858340885,-500.0,0.00043287,31]
[312400959,1705858340905,-500.0,0.00043287,31]
[312400960,1705858340915,-1440.05,0.00043287,31]
[312400961,1705858340924,-3700.14,0.00043287,31]
[312400962,1705858340933,-2092.99,0.00043287,31]
[312400963,1705858340943,-1000.0,0.00043287,2]
[312400964,1705858340952,-10145.93,0.00043287,31]
[312400965,1705858340961,-745.1,0.00043287,31]
[312400966,1705858340971,-1414.9,0.00043287,31]
[312400967,1705858340980,-505.43,0.00043287,31]
[312400968,1705858340990,-521.95,0.00043287,31]
[312400969,1705858340999,-500.0,0.00043287,31]
[312400970,1705858341306,-500.0,0.00043287,31]
[312400971,1705858341319,-680.26,0.00043287,5]
[312400972,1705858341329,-909.92,0.00043287,31]
[312400973,1705858341338,-647.36,0.00043287,31]
[312400974,1705858341349,-969.71,0.00043287,31]
[312400975,1705858341358,-4142.89,0.00043287,31]
[312400976,1705858341368,-500.0,0.00043287,31]
[312400977,1705858341378,-1000.0,0.00043287,60]
[312400978,1705858341388,-500.0,0.00043287,31]
[312400979,1705858341399,-816.06,0.00043287,31]
[312400980,1705858341409,-500.0,0.00043287,31]
[312400981,1705858341418,-500.0,0.00043287,31]
[312400982,1705858341428,-2663.37,0.00043287,31]
[312400983,1705858341438,-500.0,0.00043287,31]
[312400984,1705858341448,-696.72,0.00043287,31]
[312400985,1705858341457,-525.38,0.00043287,31]
[312400986,1705858341468,-500.0,0.00043287,31]
[312400987,1705858341477,-764.09,0.00043287,31]
[312400988,1705858341487,-500.0,0.00043287,31]
[312400989,1705858341496,-1574.71,0.00043287,31]
[312400990,1705858341506,-9891.3,0.00043287,31]
[312400991,1705858341516,-5145.07,0.00043287,31]
[312400992,1705858341526,-932.94,0.00043287,31]
[312400993,1705858341535,-831.28,0.00043287,31]
[312400994,1705858341545,-500.0,0.00043287,31]
[312400995,1705858341555,-1364.93,0.00043287,31]
[312400996,1705858341564,-3404.67,0.00043287,31]
[312400997,1705858341574,-2645.34,0.00043287,31]
[312400998,1705858341584,-735.01,0.00043287,31]
[312400999,1705858341594,-500.0,0.00043287,31]
[312401000,1705858341603,-500.0,0.00043287,31]
[312401001,1705858341613,-500.0,0.00043287,31]
[312401002,1705858341623,-1174.77,0.00043287,31]
[312401003,1705858341633,-738.19,0.00043287,31]
[312401004,1705858341643,-500.0,0.00043287,31]
[312401005,1705858341653,-14562.01,0.00043287,31]